[Event "Early-Titled-Tuesday-Blitz-May-14-2024"]
[Site "Chess.com"]
[Date "2024.05.14"]
[Round "6"]
[White "Kazmin_Semyon"]
[Black "CSB7"]
[Result "0-1"]
[WhiteElo "2591"]
[BlackElo "2766"]
[TimeControl "180+1"]
[EndTime "9:06:50 PDT"]
[Termination "CSB7 won by resignation"]

1. d4 {[%clk 0:02:54.2]} 1... Nf6 {[%clk 0:03:00.1]} 2. c4 {[%clk 0:02:54]} 2...
a6 {[%clk 0:03:00.4]} 3. Nc3 {[%clk 0:02:52.6]} 3... b5 {[%clk 0:03:00.9]} 4.
cxb5 {[%clk 0:02:50.9]} 4... axb5 {[%clk 0:03:01.8]} 5. Nxb5 {[%clk 0:02:51.3]}
5... e5 {[%clk 0:03:02]} 6. Bg5 {[%clk 0:02:44.1]} 6... Bb4+ {[%clk 0:02:45.6]}
7. Nc3 {[%clk 0:02:44]} 7... exd4 {[%clk 0:02:37.1]} 8. Qxd4 {[%clk 0:02:41]}
8... Nc6 {[%clk 0:02:37.7]} 9. Qe3+ {[%clk 0:02:33.8]} 9... Kf8 {[%clk
0:02:14.6]} 10. Nf3 {[%clk 0:02:33.6]} 10... h6 {[%clk 0:02:14.4]} 11. Bxf6
{[%clk 0:02:26.4]} 11... Qxf6 {[%clk 0:02:15.3]} 12. g3 {[%clk 0:02:26.3]} 12...
Ra3 {[%clk 0:01:59.1]} 13. Rc1 {[%clk 0:01:59]} 13... Rxa2 {[%clk 0:01:58.6]}
14. Bh3 {[%clk 0:01:59.1]} 14... Bxc3+ {[%clk 0:01:29.7]} 15. bxc3 {[%clk
0:01:58]} 15... g6 {[%clk 0:01:27.1]} 16. O-O {[%clk 0:01:55.4]} 16... Kg7
{[%clk 0:01:27.6]} 17. Nd4 {[%clk 0:01:45]} 17... Ne5 {[%clk 0:01:21.3]} 18. f4
{[%clk 0:01:41.4]} 18... Nc4 {[%clk 0:01:16.8]} 19. Qd3 {[%clk 0:01:22.3]} 19...
Ba6 {[%clk 0:01:11]} 20. Rc2 {[%clk 0:00:48.7]} 20... Na3 {[%clk 0:00:45.1]} 21.
Qxa6 {[%clk 0:00:46.1]} 21... Qxa6 {[%clk 0:00:46]} 0-1

[Event "Early-Titled-Tuesday-Blitz-May-14-2024"]
[Site "Chess.com"]
[Date "2024.05.14"]
[Round "6"]
[White "NikitaShnadrygin"]
[Black "Semetey"]
[Result "1-0"]
[WhiteElo "2737"]
[BlackElo "2582"]
[TimeControl "180+1"]
[EndTime "9:06:53 PDT"]
[Termination "NikitaShnadrygin won by checkmate"]

1. e4 {[%clk 0:03:00.9]} 1... Nc6 {[%clk 0:02:40.6]} 2. Nc3 {[%clk 0:02:59.4]}
2... e6 {[%clk 0:02:39.4]} 3. d4 {[%clk 0:02:54.5]} 3... d5 {[%clk 0:02:38.8]}
4. Nf3 {[%clk 0:02:54.3]} 4... Bb4 {[%clk 0:02:37.5]} 5. exd5 {[%clk 0:02:41.1]}
5... exd5 {[%clk 0:02:37.3]} 6. Bd3 {[%clk 0:02:41]} 6... Nf6 {[%clk 0:02:37.5]}
7. O-O {[%clk 0:02:40.2]} 7... O-O {[%clk 0:02:37.7]} 8. Bg5 {[%clk 0:02:35.4]}
8... Bg4 {[%clk 0:02:37.1]} 9. Bxf6 {[%clk 0:02:26.4]} 9... gxf6 {[%clk
0:02:21.3]} 10. h3 {[%clk 0:01:37.7]} 10... Bh5 {[%clk 0:02:11.4]} 11. g4 {[%clk
0:01:34.3]} 11... Bg6 {[%clk 0:02:11.1]} 12. Ne2 {[%clk 0:01:34.6]} 12... Bd6
{[%clk 0:02:09.6]} 13. c3 {[%clk 0:01:31.3]} 13... Ne7 {[%clk 0:02:08.7]} 14.
Ng3 {[%clk 0:01:30.3]} 14... Bxg3 {[%clk 0:02:07.4]} 15. fxg3 {[%clk 0:01:30]}
15... Qd6 {[%clk 0:02:06.9]} 16. Kh2 {[%clk 0:01:25.4]} 16... Rfe8 {[%clk
0:02:03]} 17. Nh4 {[%clk 0:01:25]} 17... c5 {[%clk 0:01:58.7]} 18. Qf3 {[%clk
0:01:20.1]} 18... cxd4 {[%clk 0:01:58]} 19. cxd4 {[%clk 0:01:19.2]} 19... Kg7
{[%clk 0:01:58.4]} 20. Rae1 {[%clk 0:00:52.8]} 20... Rac8 {[%clk 0:01:57.3]} 21.
g5 {[%clk 0:00:44.1]} 21... fxg5 {[%clk 0:01:56]} 22. Nxg6 {[%clk 0:00:39.4]}
22... fxg6 {[%clk 0:01:46.6]} 23. Qf7+ {[%clk 0:00:38.4]} 23... Kh6 {[%clk
0:01:46.5]} 24. Rf6 {[%clk 0:00:37.6]} 24... Qb4 {[%clk 0:01:42.9]} 25. Rxe7
{[%clk 0:00:18.1]} 25... Rxe7 {[%clk 0:01:42.1]} 26. Rxg6+ {[%clk 0:00:17.9]}
26... Kh5 {[%clk 0:01:37]} 27. Rxg5+ {[%clk 0:00:14.5]} 27... Kxg5 {[%clk
0:01:36.4]} 28. Qf4+ {[%clk 0:00:14.6]} 28... Kh5 {[%clk 0:01:36.6]} 29. g4+
{[%clk 0:00:12]} 29... Kh4 {[%clk 0:01:36.5]} 30. Qh6# {[%clk 0:00:12.7]} 1-0

[Event "Early-Titled-Tuesday-Blitz-May-14-2024"]
[Site "Chess.com"]
[Date "2024.05.14"]
[Round "6"]
[White "Buzhizhebuguai"]
[Black "xasid81"]
[Result "1-0"]
[WhiteElo "2765"]
[BlackElo "2590"]
[TimeControl "180+1"]
[EndTime "9:06:54 PDT"]
[Termination "Buzhizhebuguai won by resignation"]

1. d4 {[%clk 0:03:00.9]} 1... d5 {[%clk 0:02:59.1]} 2. Nf3 {[%clk 0:02:59.9]}
2... Nf6 {[%clk 0:02:59.1]} 3. c4 {[%clk 0:03:00.1]} 3... dxc4 {[%clk 0:02:58]}
4. e3 {[%clk 0:03:00.1]} 4... e6 {[%clk 0:02:58.4]} 5. Bxc4 {[%clk 0:03:00.2]}
5... a6 {[%clk 0:02:58.5]} 6. O-O {[%clk 0:03:00.2]} 6... c5 {[%clk 0:02:59.2]}
7. Qe2 {[%clk 0:03:00.1]} 7... cxd4 {[%clk 0:02:58.9]} 8. Rd1 {[%clk 0:03:00.3]}
8... Nc6 {[%clk 0:02:58.6]} 9. Nxd4 {[%clk 0:02:54.5]} 9... Nxd4 {[%clk
0:02:58.4]} 10. Rxd4 {[%clk 0:02:53]} 10... Qc7 {[%clk 0:02:58.5]} 11. Nc3
{[%clk 0:02:51.2]} 11... Bc5 {[%clk 0:02:55.2]} 12. Rh4 {[%clk 0:02:50.9]} 12...
h6 {[%clk 0:02:44.4]} 13. b3 {[%clk 0:02:42.6]} 13... b5 {[%clk 0:02:22.7]} 14.
Bd3 {[%clk 0:02:42.3]} 14... g5 {[%clk 0:01:51.2]} 15. Ne4 {[%clk 0:02:42]}
15... Nxe4 {[%clk 0:01:41.2]} 16. Rxe4 {[%clk 0:02:40]} 16... Bb7 {[%clk
0:01:38]} 17. Bb2 {[%clk 0:02:35.1]} 17... Bxe4 {[%clk 0:01:31.8]} 18. Bxh8
{[%clk 0:02:35.2]} 18... Bxd3 {[%clk 0:01:27.7]} 19. Qxd3 {[%clk 0:02:35.6]}
19... Bd6 {[%clk 0:01:15.6]} 20. Rd1 {[%clk 0:02:20.9]} 20... O-O-O {[%clk
0:01:02.5]} 21. g3 {[%clk 0:02:12.3]} 21... Be7 {[%clk 0:00:15]} 22. Qb1 {[%clk
0:02:04.5]} 22... Rxh8 {[%clk 0:00:13.8]} 23. Rc1 {[%clk 0:02:04.8]} 23... Bc5
{[%clk 0:00:14.2]} 24. b4 {[%clk 0:02:05.2]} 24... Kb8 {[%clk 0:00:14.3]} 25.
bxc5 {[%clk 0:02:01.7]} 25... Rd8 {[%clk 0:00:13.4]} 26. a4 {[%clk 0:02:01.6]}
26... Qc6 {[%clk 0:00:13.4]} 27. axb5 {[%clk 0:02:01.9]} 27... Qxb5 {[%clk
0:00:12.3]} 28. Qe4 {[%clk 0:01:59.3]} 28... Kc7 {[%clk 0:00:11.7]} 29. c6
{[%clk 0:01:59]} 29... Rd5 {[%clk 0:00:11.4]} 30. Qf3 {[%clk 0:01:57.5]} 30...
f5 {[%clk 0:00:11.1]} 31. Qh5 {[%clk 0:01:57.1]} 31... Rc5 {[%clk 0:00:11.3]}
32. Qf7+ {[%clk 0:01:57.2]} 32... Kb6 {[%clk 0:00:10.8]} 33. Qb7+ {[%clk
0:01:55.8]} 33... Ka5 {[%clk 0:00:10.8]} 34. Qxb5+ {[%clk 0:01:56.2]} 1-0

[Event "Early-Titled-Tuesday-Blitz-May-14-2024"]
[Site "Chess.com"]
[Date "2024.05.14"]
[Round "6"]
[White "dianamirza"]
[Black "LeoWin2012"]
[Result "0-1"]
[WhiteElo "1952"]
[BlackElo "2320"]
[TimeControl "180+1"]
[EndTime "9:06:55 PDT"]
[Termination "LeoWin2012 won on time"]

1. e4 {[%clk 0:02:49.2]} 1... e6 {[%clk 0:03:00.9]} 2. d3 {[%clk 0:02:49]} 2...
d6 {[%clk 0:03:01.8]} 3. Nd2 {[%clk 0:02:49.5]} 3... Ne7 {[%clk 0:03:02.7]} 4.
g3 {[%clk 0:02:49.6]} 4... Nd7 {[%clk 0:03:03.6]} 5. Bh3 {[%clk 0:02:50.1]} 5...
g6 {[%clk 0:03:03.7]} 6. Ngf3 {[%clk 0:02:49.9]} 6... Bg7 {[%clk 0:03:04.3]} 7.
O-O {[%clk 0:02:50.3]} 7... O-O {[%clk 0:03:04.9]} 8. c3 {[%clk 0:02:48.4]} 8...
b6 {[%clk 0:03:05.4]} 9. d4 {[%clk 0:02:48.2]} 9... Bb7 {[%clk 0:03:05.9]} 10.
Bg2 {[%clk 0:02:47.2]} 10... a6 {[%clk 0:03:06.5]} 11. Qc2 {[%clk 0:02:43.9]}
11... h6 {[%clk 0:03:06.9]} 12. a4 {[%clk 0:02:42.2]} 12... Kh7 {[%clk
0:03:05.3]} 13. Nc4 {[%clk 0:02:42]} 13... Rc8 {[%clk 0:03:03.4]} 14. Nh4 {[%clk
0:02:41.1]} 14... Ng8 {[%clk 0:02:54.7]} 15. f4 {[%clk 0:02:37.8]} 15... e5
{[%clk 0:02:48]} 16. fxe5 {[%clk 0:02:31]} 16... dxe5 {[%clk 0:02:48.9]} 17. d5
{[%clk 0:02:23]} 17... c6 {[%clk 0:02:32.7]} 18. Nd6 {[%clk 0:02:18.5]} 18...
Rb8 {[%clk 0:02:28.1]} 19. Nxb7 {[%clk 0:02:10.4]} 19... Qc7 {[%clk 0:02:23.1]}
20. dxc6 {[%clk 0:01:21.7]} 20... Qxc6 {[%clk 0:02:24]} 21. Qb3 {[%clk
0:01:16.4]} 21... Rxb7 {[%clk 0:02:18.1]} 22. Rxf7 {[%clk 0:01:16.1]} 22... Nc5
{[%clk 0:02:18.4]} 23. Rxg7+ {[%clk 0:00:54.6]} 23... Kxg7 {[%clk 0:02:13]} 24.
Qd5 {[%clk 0:00:54.3]} 24... Qxd5 {[%clk 0:02:12.4]} 25. exd5 {[%clk 0:00:55.2]}
25... Rd7 {[%clk 0:02:07.3]} 26. Be3 {[%clk 0:00:52]} 26... Nf6 {[%clk
0:02:02.6]} 27. b4 {[%clk 0:00:51.4]} 27... Nd3 {[%clk 0:01:52.4]} 28. Bxb6
{[%clk 0:00:46.4]} 28... Nxd5 {[%clk 0:01:52.1]} 29. Ba5 {[%clk 0:00:08.5]}
29... Nxc3 {[%clk 0:01:48.3]} 30. Nf3 {[%clk 0:00:06.4]} 30... e4 {[%clk
0:01:48]} 31. Nd2 {[%clk 0:00:05.5]} 31... e3 {[%clk 0:01:48]} 32. Nc4 {[%clk
0:00:05]} 32... e2 {[%clk 0:01:48.6]} 0-1

[Event "Early-Titled-Tuesday-Blitz-May-14-2024"]
[Site "Chess.com"]
[Date "2024.05.14"]
[Round "6"]
[White "mostafa_sakha"]
[Black "Maluco_do_Natal_00"]
[Result "1-0"]
[WhiteElo "2337"]
[BlackElo "2037"]
[TimeControl "180+1"]
[EndTime "9:07:00 PDT"]
[Termination "mostafa_sakha won by resignation"]

1. d4 {[%clk 0:03:00]} 1... d5 {[%clk 0:02:59.7]} 2. c4 {[%clk 0:02:59.6]} 2...
c6 {[%clk 0:02:59.7]} 3. Nf3 {[%clk 0:02:59]} 3... Nf6 {[%clk 0:02:59.9]} 4. Nc3
{[%clk 0:02:58.6]} 4... dxc4 {[%clk 0:03:00.3]} 5. e4 {[%clk 0:02:58.1]} 5... b5
{[%clk 0:02:59.5]} 6. Be2 {[%clk 0:02:58.1]} 6... b4 {[%clk 0:02:56.6]} 7. e5
{[%clk 0:02:57.3]} 7... bxc3 {[%clk 0:02:51.2]} 8. exf6 {[%clk 0:02:56.9]} 8...
cxb2 {[%clk 0:02:44.9]} 9. fxg7 {[%clk 0:02:41.3]} 9... Bxg7 {[%clk 0:02:35.1]}
10. Bxb2 {[%clk 0:02:39.4]} 10... O-O {[%clk 0:02:27.3]} 11. O-O {[%clk
0:02:36]} 11... c5 {[%clk 0:02:21.8]} 12. Bxc4 {[%clk 0:02:26.4]} 12... cxd4
{[%clk 0:02:18.2]} 13. Bxd4 {[%clk 0:02:21.6]} 13... Bb7 {[%clk 0:02:12.6]} 14.
Bxg7 {[%clk 0:02:16.5]} 14... Qxd1 {[%clk 0:02:10.2]} 15. Rfxd1 {[%clk
0:02:15.9]} 15... Kxg7 {[%clk 0:02:10.3]} 16. Ne5 {[%clk 0:02:10.1]} 16... Nc6
{[%clk 0:02:06.7]} 17. Nd7 {[%clk 0:02:03.4]} 17... Rfd8 {[%clk 0:01:56.5]} 18.
Nc5 {[%clk 0:02:02.7]} 18... Ne5 {[%clk 0:01:38.6]} 19. Rxd8 {[%clk 0:01:52.5]}
19... Rxd8 {[%clk 0:01:17.7]} 20. Nxb7 {[%clk 0:01:51.3]} 20... Rd7 {[%clk
0:00:51.5]} 21. Na5 {[%clk 0:01:44]} 21... Rd4 {[%clk 0:00:25.5]} 22. Bf1 {[%clk
0:01:40.1]} 22... Ra4 {[%clk 0:00:21.5]} 23. Nb3 {[%clk 0:01:38.7]} 23... f5
{[%clk 0:00:20.4]} 24. a3 {[%clk 0:01:27.2]} 24... f4 {[%clk 0:00:19.4]} 25. Nc5
{[%clk 0:01:25.7]} 25... Rd4 {[%clk 0:00:10.6]} 1-0

[Event "Early-Titled-Tuesday-Blitz-May-14-2024"]
[Site "Chess.com"]
[Date "2024.05.14"]
[Round "6"]
[White "jaramsdal"]
[Black "Pedrada88"]
[Result "0-1"]
[WhiteElo "2384"]
[BlackElo "2560"]
[TimeControl "180+1"]
[EndTime "9:07:03 PDT"]
[Termination "Pedrada88 won by resignation"]

1. e4 {[%clk 0:03:00.9]} 1... c6 {[%clk 0:03:00.2]} 2. Nf3 {[%clk 0:02:59.1]}
2... d5 {[%clk 0:03:00.5]} 3. exd5 {[%clk 0:02:59.9]} 3... cxd5 {[%clk
0:03:00.6]} 4. Ne5 {[%clk 0:03:00.5]} 4... Nc6 {[%clk 0:03:00.4]} 5. Bb5 {[%clk
0:03:00.3]} 5... Bd7 {[%clk 0:03:00.9]} 6. Nxd7 {[%clk 0:02:59.7]} 6... Qxd7
{[%clk 0:03:01.2]} 7. O-O {[%clk 0:03:00.4]} 7... a6 {[%clk 0:03:01.1]} 8. Be2
{[%clk 0:02:54.6]} 8... e5 {[%clk 0:03:00.1]} 9. c3 {[%clk 0:02:50.5]} 9... d4
{[%clk 0:02:52.1]} 10. d3 {[%clk 0:02:44.7]} 10... Nf6 {[%clk 0:02:51.8]} 11.
Bf3 {[%clk 0:02:43.9]} 11... Bc5 {[%clk 0:02:50.8]} 12. Re1 {[%clk 0:02:41.6]}
12... O-O {[%clk 0:02:50.7]} 13. Bg5 {[%clk 0:02:33.7]} 13... Nd5 {[%clk
0:02:48.2]} 14. c4 {[%clk 0:02:25]} 14... Nf4 {[%clk 0:02:35.7]} 15. Bxf4 {[%clk
0:02:05.3]} 15... exf4 {[%clk 0:02:36.6]} 16. Re4 {[%clk 0:02:05.6]} 16... f5
{[%clk 0:02:32.2]} 17. Re2 {[%clk 0:01:50.5]} 17... Rae8 {[%clk 0:02:30.8]} 18.
Nd2 {[%clk 0:01:50.1]} 18... Rxe2 {[%clk 0:02:27.8]} 19. Qxe2 {[%clk 0:01:51]}
19... Re8 {[%clk 0:02:28]} 20. Qf1 {[%clk 0:01:51.2]} 20... g5 {[%clk
0:02:20.5]} 21. h3 {[%clk 0:01:49.1]} 21... Ne5 {[%clk 0:02:04.6]} 22. Bd5+
{[%clk 0:01:46.5]} 22... Kg7 {[%clk 0:02:04.3]} 23. Nf3 {[%clk 0:01:39.8]} 23...
Nxf3+ {[%clk 0:01:44.1]} 24. Bxf3 {[%clk 0:01:40.7]} 24... g4 {[%clk 0:01:44.7]}
25. hxg4 {[%clk 0:01:41.1]} 25... fxg4 {[%clk 0:01:45.6]} 26. Be4 {[%clk
0:01:41.7]} 26... Qf7 {[%clk 0:01:34.3]} 27. Qd1 {[%clk 0:01:16.9]} 27... Qh5
{[%clk 0:01:30.2]} 28. Kf1 {[%clk 0:01:11.2]} 28... Qh1+ {[%clk 0:01:26.7]} 29.
Ke2 {[%clk 0:01:11]} 29... Qxg2 {[%clk 0:01:27.2]} 30. Qh1 {[%clk 0:01:05.8]}
30... f3+ {[%clk 0:01:23.1]} 31. Kd2 {[%clk 0:00:58.9]} 31... Qxf2+ {[%clk
0:01:15.7]} 32. Kc1 {[%clk 0:00:59.3]} 32... Qe3+ {[%clk 0:01:12]} 33. Kb1
{[%clk 0:00:57.7]} 33... Rxe4 {[%clk 0:00:58.2]} 34. dxe4 {[%clk 0:00:58.6]}
34... Qxe4+ {[%clk 0:00:58.9]} 35. Kc1 {[%clk 0:00:59]} 35... d3 {[%clk
0:00:59]} 36. Kd2 {[%clk 0:00:56.5]} 36... Bb4+ {[%clk 0:00:58]} 37. Kd1 {[%clk
0:00:55.9]} 37... Qe2+ {[%clk 0:00:57.8]} 0-1

[Event "Early-Titled-Tuesday-Blitz-May-14-2024"]
[Site "Chess.com"]
[Date "2024.05.14"]
[Round "6"]
[White "LileKoridze"]
[Black "TomLiu777"]
[Result "0-1"]
[WhiteElo "2405"]
[BlackElo "2286"]
[TimeControl "180+1"]
[EndTime "9:07:06 PDT"]
[Termination "TomLiu777 won by resignation"]

1. d4 {[%clk 0:03:00.9]} 1... e6 {[%clk 0:02:59.7]} 2. c4 {[%clk 0:03:00.8]}
2... d5 {[%clk 0:02:57.8]} 3. Nf3 {[%clk 0:03:00.9]} 3... a6 {[%clk 0:02:58.4]}
4. cxd5 {[%clk 0:02:59.7]} 4... exd5 {[%clk 0:02:58.1]} 5. g3 {[%clk 0:02:54.6]}
5... Bd6 {[%clk 0:02:57.4]} 6. Bg2 {[%clk 0:02:54.4]} 6... Nf6 {[%clk
0:02:58.1]} 7. O-O {[%clk 0:02:53.6]} 7... h6 {[%clk 0:02:58.1]} 8. Nc3 {[%clk
0:02:53.2]} 8... Be6 {[%clk 0:02:58.7]} 9. Ne5 {[%clk 0:02:46.4]} 9... O-O
{[%clk 0:02:57.2]} 10. Re1 {[%clk 0:02:41.4]} 10... Nbd7 {[%clk 0:02:54.8]} 11.
Nxd7 {[%clk 0:02:40.2]} 11... Qxd7 {[%clk 0:02:54.6]} 12. e4 {[%clk 0:02:40.3]}
12... dxe4 {[%clk 0:02:54.6]} 13. Nxe4 {[%clk 0:02:40.1]} 13... Nxe4 {[%clk
0:02:54.2]} 14. Bxe4 {[%clk 0:02:40.3]} 14... Bb4 {[%clk 0:02:52.9]} 15. Rf1
{[%clk 0:02:34.2]} 15... Bh3 {[%clk 0:02:50.7]} 16. Bg2 {[%clk 0:02:34.2]} 16...
Bxg2 {[%clk 0:02:50.4]} 17. Kxg2 {[%clk 0:02:35.1]} 17... Rad8 {[%clk
0:02:50.6]} 18. Be3 {[%clk 0:02:34.8]} 18... Be7 {[%clk 0:02:45.2]} 19. Qc2
{[%clk 0:02:33.1]} 19... Bf6 {[%clk 0:02:44.8]} 20. Rfd1 {[%clk 0:02:32]} 20...
c6 {[%clk 0:02:44.7]} 21. Rac1 {[%clk 0:02:23.2]} 21... Qd5+ {[%clk 0:02:44]}
22. Kg1 {[%clk 0:02:22.5]} 22... h5 {[%clk 0:02:44.5]} 23. h4 {[%clk 0:02:12.9]}
23... Rfe8 {[%clk 0:02:40]} 24. b3 {[%clk 0:02:10.9]} 24... Qf3 {[%clk
0:02:27.1]} 25. Rd3 {[%clk 0:02:03.3]} 25... Qf5 {[%clk 0:02:14.6]} 26. Qd2
{[%clk 0:01:51.2]} 26... Re4 {[%clk 0:02:12.4]} 27. Rc5 {[%clk 0:01:47.2]} 27...
Qh3 {[%clk 0:02:10.1]} 28. Rxh5 {[%clk 0:01:44.9]} 28... Rd5 {[%clk 0:02:05.9]}
29. Rxd5 {[%clk 0:01:44.8]} 29... cxd5 {[%clk 0:02:06.7]} 30. Bf4 {[%clk
0:01:32.4]} 30... Qe6 {[%clk 0:01:51.2]} 31. Kg2 {[%clk 0:01:25.6]} 31... Re2
{[%clk 0:01:49.7]} 32. Qc3 {[%clk 0:00:57.6]} 32... Qe4+ {[%clk 0:01:44.8]} 33.
Rf3 {[%clk 0:00:55.1]} 33... Bxd4 {[%clk 0:01:41.3]} 34. Qc8+ {[%clk 0:00:53.9]}
34... Kh7 {[%clk 0:01:42]} 35. Kf1 {[%clk 0:00:30.9]} 35... Qxf3 {[%clk
0:01:32.5]} 36. Qf5+ {[%clk 0:00:30]} 36... g6 {[%clk 0:01:33.2]} 37. Qxf7+
{[%clk 0:00:30.5]} 37... Bg7 {[%clk 0:01:33.9]} 0-1

[Event "Early-Titled-Tuesday-Blitz-May-14-2024"]
[Site "Chess.com"]
[Date "2024.05.14"]
[Round "6"]
[White "Byniolus"]
[Black "WilsonPalencia21"]
[Result "1-0"]
[WhiteElo "2820"]
[BlackElo "2592"]
[TimeControl "180+1"]
[EndTime "9:07:15 PDT"]
[Termination "Byniolus won by resignation"]

1. d4 {[%clk 0:03:00.9]} 1... Nf6 {[%clk 0:02:54.1]} 2. Nf3 {[%clk 0:03:01.1]}
2... c5 {[%clk 0:02:53.7]} 3. c3 {[%clk 0:03:01.1]} 3... d5 {[%clk 0:02:53.5]}
4. Bf4 {[%clk 0:03:01.1]} 4... Nc6 {[%clk 0:02:54.4]} 5. Nbd2 {[%clk 0:03:00]}
5... Qb6 {[%clk 0:02:55]} 6. Qb3 {[%clk 0:02:59.4]} 6... c4 {[%clk 0:02:54.9]}
7. Qc2 {[%clk 0:03:00]} 7... Nh5 {[%clk 0:02:53.9]} 8. Bg3 {[%clk 0:02:59.4]}
8... g6 {[%clk 0:02:51.7]} 9. e4 {[%clk 0:02:58.6]} 9... e6 {[%clk 0:02:51.9]}
10. Be2 {[%clk 0:02:55.9]} 10... Bg7 {[%clk 0:02:51.2]} 11. O-O {[%clk
0:02:52.1]} 11... Nxg3 {[%clk 0:02:47.6]} 12. hxg3 {[%clk 0:02:53]} 12... O-O
{[%clk 0:02:47.5]} 13. Rfe1 {[%clk 0:02:51]} 13... Qd8 {[%clk 0:02:40.5]} 14.
Nf1 {[%clk 0:02:42.2]} 14... b5 {[%clk 0:02:37.9]} 15. Ne3 {[%clk 0:02:40.5]}
15... dxe4 {[%clk 0:02:23.7]} 16. Qxe4 {[%clk 0:02:37]} 16... Bb7 {[%clk
0:02:24]} 17. Rad1 {[%clk 0:02:29.2]} 17... Rb8 {[%clk 0:02:21.4]} 18. Qf4
{[%clk 0:02:23.7]} 18... Ne7 {[%clk 0:02:19.6]} 19. Ne5 {[%clk 0:02:16.5]} 19...
g5 {[%clk 0:02:08.6]} 20. Qg4 {[%clk 0:02:08.2]} 20... h6 {[%clk 0:02:04.1]} 21.
Bf3 {[%clk 0:02:03.1]} 21... f5 {[%clk 0:01:58.7]} 22. Qh5 {[%clk 0:02:00.1]}
22... Bxf3 {[%clk 0:01:36.7]} 23. gxf3 {[%clk 0:01:59]} 23... Nd5 {[%clk
0:01:29.9]} 24. Nc6 {[%clk 0:01:50.6]} 24... Qe8 {[%clk 0:00:58.3]} 25. Qxe8
{[%clk 0:01:50.4]} 25... Rbxe8 {[%clk 0:00:58.5]} 26. Nxd5 {[%clk 0:01:51]}
26... exd5 {[%clk 0:00:58.3]} 27. Ne7+ {[%clk 0:01:48.5]} 27... Kf7 {[%clk
0:00:56.6]} 28. Nxf5 {[%clk 0:01:45.3]} 28... Kf6 {[%clk 0:00:42.1]} 29. g4
{[%clk 0:01:36.1]} 29... a5 {[%clk 0:00:36.1]} 30. Re5 {[%clk 0:01:25]} 30...
Kg6 {[%clk 0:00:29]} 31. Rxd5 {[%clk 0:01:19.8]} 1-0

[Event "Early-Titled-Tuesday-Blitz-May-14-2024"]
[Site "Chess.com"]
[Date "2024.05.14"]
[Round "6"]
[White "Adar_07"]
[Black "yaguigor"]
[Result "1-0"]
[WhiteElo "2725"]
[BlackElo "2577"]
[TimeControl "180+1"]
[EndTime "9:07:16 PDT"]
[Termination "Adar_07 won by checkmate"]

1. Nf3 {[%clk 0:03:00.2]} 1... d5 {[%clk 0:02:57.9]} 2. c4 {[%clk 0:02:58.9]}
2... c6 {[%clk 0:02:57.6]} 3. d4 {[%clk 0:02:57]} 3... Nf6 {[%clk 0:02:56.8]} 4.
Nc3 {[%clk 0:02:50.6]} 4... e6 {[%clk 0:02:56.2]} 5. Bg5 {[%clk 0:02:49.8]} 5...
dxc4 {[%clk 0:02:54.2]} 6. e4 {[%clk 0:02:49.9]} 6... b5 {[%clk 0:02:53.8]} 7.
e5 {[%clk 0:02:50.1]} 7... h6 {[%clk 0:02:53.7]} 8. Bh4 {[%clk 0:02:50.4]} 8...
g5 {[%clk 0:02:52.5]} 9. Nxg5 {[%clk 0:02:50]} 9... hxg5 {[%clk 0:02:52.2]} 10.
Bxg5 {[%clk 0:02:50.9]} 10... Nbd7 {[%clk 0:02:52.5]} 11. exf6 {[%clk
0:02:50.2]} 11... Bb7 {[%clk 0:02:50.5]} 12. Qf3 {[%clk 0:02:46.9]} 12... Qa5
{[%clk 0:02:41.4]} 13. g3 {[%clk 0:02:38.1]} 13... O-O-O {[%clk 0:02:27.3]} 14.
Bg2 {[%clk 0:02:37.5]} 14... Bh6 {[%clk 0:02:07]} 15. Be3 {[%clk 0:02:15.5]}
15... Bxe3 {[%clk 0:01:48]} 16. fxe3 {[%clk 0:02:16.4]} 16... e5 {[%clk
0:01:43.1]} 17. O-O {[%clk 0:02:07.4]} 17... exd4 {[%clk 0:01:42.3]} 18. exd4
{[%clk 0:02:08.3]} 18... Qb6 {[%clk 0:01:41.1]} 19. Rad1 {[%clk 0:02:07.8]}
19... a6 {[%clk 0:01:25.9]} 20. Ne4 {[%clk 0:02:05.1]} 20... Kb8 {[%clk
0:01:15.2]} 21. Nd6 {[%clk 0:02:02.1]} 21... Ne5 {[%clk 0:01:14.5]} 22. Qf4
{[%clk 0:01:59]} 22... Rxd6 {[%clk 0:01:13.2]} 23. Qxe5 {[%clk 0:01:58.6]} 23...
Rd8 {[%clk 0:01:05.4]} 24. h4 {[%clk 0:01:57.4]} 24... Ka7 {[%clk 0:00:59.4]}
25. Rf4 {[%clk 0:01:48.1]} 25... Re6 {[%clk 0:00:57.7]} 26. Qh5 {[%clk
0:01:41.1]} 26... c5 {[%clk 0:00:50]} 27. Qxf7 {[%clk 0:01:39.7]} 27... Rxd4
{[%clk 0:00:34.3]} 28. Rfxd4 {[%clk 0:01:31.3]} 28... cxd4 {[%clk 0:00:33.4]}
29. Bxb7 {[%clk 0:01:29.8]} 29... Rxf6 {[%clk 0:00:33.6]} 30. Qe7 {[%clk
0:01:25.3]} 30... d3+ {[%clk 0:00:32.8]} 31. Kh2 {[%clk 0:01:25.2]} 31... Rf2+
{[%clk 0:00:31.9]} 32. Bg2+ {[%clk 0:01:24.9]} 32... Kb8 {[%clk 0:00:30.5]} 33.
Re1 {[%clk 0:01:21]} 33... Qc6 {[%clk 0:00:24.2]} 34. Qd8+ {[%clk 0:01:18.1]}
34... Kb7 {[%clk 0:00:24.1]} 35. Re7# {[%clk 0:01:17.6]} 1-0

[Event "Early-Titled-Tuesday-Blitz-May-14-2024"]
[Site "Chess.com"]
[Date "2024.05.14"]
[Round "6"]
[White "stepanosinovsky"]
[Black "ajeale2"]
[Result "0-1"]
[WhiteElo "2315"]
[BlackElo "2484"]
[TimeControl "180+1"]
[EndTime "9:07:23 PDT"]
[Termination "ajeale2 won by checkmate"]

1. Nf3 {[%clk 0:03:00.9]} 1... g6 {[%clk 0:02:59.6]} 2. g3 {[%clk 0:03:00.3]}
2... Bg7 {[%clk 0:02:59.7]} 3. Bg2 {[%clk 0:03:01.1]} 3... d5 {[%clk 0:03:00]}
4. O-O {[%clk 0:03:01.5]} 4... Nf6 {[%clk 0:03:00.5]} 5. d3 {[%clk 0:03:01.7]}
5... O-O {[%clk 0:03:01.1]} 6. Nbd2 {[%clk 0:03:01.9]} 6... c5 {[%clk
0:03:00.7]} 7. e4 {[%clk 0:03:02.2]} 7... Nc6 {[%clk 0:03:01.2]} 8. Re1 {[%clk
0:03:02]} 8... e5 {[%clk 0:02:58.7]} 9. exd5 {[%clk 0:02:52.3]} 9... Nxd5 {[%clk
0:02:59]} 10. Nc4 {[%clk 0:02:52.8]} 10... f6 {[%clk 0:02:56.7]} 11. a4 {[%clk
0:02:50.8]} 11... Re8 {[%clk 0:02:55.1]} 12. c3 {[%clk 0:02:42.1]} 12... Be6
{[%clk 0:02:53.2]} 13. a5 {[%clk 0:02:15]} 13... Qd7 {[%clk 0:02:44.2]} 14. Qb3
{[%clk 0:02:00]} 14... Rad8 {[%clk 0:02:40.9]} 15. Nfd2 {[%clk 0:01:23]} 15...
Qf7 {[%clk 0:02:40.2]} 16. Ne4 {[%clk 0:01:19]} 16... Bf8 {[%clk 0:02:37.5]} 17.
Qa4 {[%clk 0:01:06.8]} 17... Nc7 {[%clk 0:02:32.4]} 18. Bf1 {[%clk 0:00:33]}
18... Bd5 {[%clk 0:02:26.4]} 19. Be3 {[%clk 0:00:28.8]} 19... Ne6 {[%clk
0:02:16.6]} 20. Qb5 {[%clk 0:00:22.3]} 20... Qe7 {[%clk 0:01:41.1]} 21. Rad1
{[%clk 0:00:18.8]} 21... f5 {[%clk 0:01:41]} 22. Ned2 {[%clk 0:00:14]} 22... Qf6
{[%clk 0:01:32]} 23. f4 {[%clk 0:00:13]} 23... exf4 {[%clk 0:01:28.1]} 24. gxf4
{[%clk 0:00:13]} 24... Bh6 {[%clk 0:01:23.5]} 25. Qxb7 {[%clk 0:00:10.6]} 25...
Nxf4 {[%clk 0:01:19.6]} 26. Qc7 {[%clk 0:00:08.8]} 26... Qg5+ {[%clk 0:01:18.8]}
27. Kf2 {[%clk 0:00:07]} 27... Nxd3+ {[%clk 0:01:05.6]} 28. Bxd3 {[%clk
0:00:06.3]} 28... Qg2# {[%clk 0:01:05.6]} 0-1